fUSD/lending_fUSD_20260516
["ID","MTS","AMOUNT","RATE_DAILY","PERIOD"]
[422362970,1778874638000,-166.66,0.00013836,2]
[422362967,1778874638000,-4327.55830117,0.00013774,2]
[422362962,1778874638000,-150.0,0.00013737,2]
[422362972,1778874638000,-150.0,0.00013909,2]
[422363055,1778874639000,-200.0,0.00014752,2]
[422363046,1778874639000,-150.60061714,0.00014695,2]
[422363044,1778874639000,-1228.50150457,0.00014693,2]
[422363048,1778874639000,-400.0,0.000147,5]
[422363045,1778874639000,-824.61712934,0.00014695,2]
[422363034,1778874639000,-150.0,0.00014565,2]
[422363053,1778874639000,-150.0,0.00014737,2]
[422363054,1778874639000,-5023.06575487,0.00014749,2]
[422363042,1778874639000,-150.0,0.00014658,2]
[422363035,1778874639000,-156.6761228,0.00014595,2]
[422363052,1778874639000,-150.0,0.00014737,2]
[422363036,1778874639000,-2508.0,0.000146,2]
[422363043,1778874639000,-150.0,0.00014687,2]
[422363051,1778874639000,-150.0,0.00014737,2]
[422363060,1778874639000,-742.062,0.00014772,2]
[422363047,1778874639000,-330.50441725,0.00014695,2]
[422363050,1778874639000,-1000.0,0.00014725,2]
[422363056,1778874639000,-150.0,0.00014752,2]
[422363064,1778874639000,-5023.06575481,0.00014799,2]
[422363067,1778874639000,-200.0,0.00014831,2]
[422363068,1778874639000,-1228.50150457,0.00014831,2]
[422363062,1778874639000,-5023.06575481,0.00014783,2]
[422363058,1778874639000,-1228.50150457,0.00014762,2]
[422363061,1778874639000,-172.83991482,0.00014776,2]
[422363057,1778874639000,-500.0,0.00014755,2]
[422363066,1778874639000,-5023.06575481,0.00014816,2]
[422363059,1778874639000,-5023.06575481,0.00014766,2]
[422363033,1778874639000,-1228.50150457,0.00014556,2]
[422363063,1778874639000,-150.0,0.00014799,2]
[422363049,1778874639000,-150.0,0.00014705,2]
[422363038,1778874639000,-500.0,0.00014603,2]
[422363014,1778874639000,-150.0,0.00014377,2]
[422363030,1778874639000,-464.47,0.00014504,2]
[422363065,1778874639000,-400.0,0.000148,5]
[422363006,1778874639000,-166.66,0.00014247,2]
[422363007,1778874639000,-150.0,0.00014284,2]
[422363008,1778874639000,-469.94,0.00014287,2]
[422363005,1778874639000,-150.0,0.00014237,2]
[422363009,1778874639000,-469.94,0.00014287,2]
[422363011,1778874639000,-150.0,0.00014331,2]
[422363010,1778874639000,-800.0,0.000143,5]
[422363015,1778874639000,-166.66,0.00014384,2]
[422363012,1778874639000,-4327.55830117,0.00014337,2]
[422363013,1778874639000,-653.65084534,0.00014349,2]
[422363016,1778874639000,-150.0,0.00014387,2]
[422363018,1778874639000,-350.0,0.00014407,2]
[422363027,1778874639000,-500.0,0.00014499,2]
[422363037,1778874639000,-2000.0,0.000146,5]
[422363020,1778874639000,-150.0,0.00014424,2]
[422363019,1778874639000,-1228.50150462,0.00014418,2]
[422363022,1778874639000,-150.0,0.00014487,2]
[422363025,1778874639000,-150.0,0.00014487,2]
[422363024,1778874639000,-150.0,0.00014487,2]
[422363021,1778874639000,-150.0,0.00014471,2]
[422363026,1778874639000,-1228.50150457,0.00014487,2]
[422363023,1778874639000,-150.0,0.00014487,2]
[422363039,1778874639000,-150.0,0.00014612,2]
[422363040,1778874639000,-4327.55830117,0.00014618,2]
[422363029,1778874639000,-150.99,0.00014504,2]
[422363041,1778874639000,-1228.50150457,0.00014625,2]
[422363028,1778874639000,-1600.0,0.000145,5]
[422363032,1778874639000,-150.0,0.00014518,2]
[422363031,1778874639000,-24999.99,0.00014504,2]
[422363017,1778874639000,-1200.0,0.000144,5]
[422363070,1778874639000,-150.0,0.00014846,2]
[422363079,1778874639000,-500.0,0.00014873,2]
[422363081,1778874639000,-500.0,0.00014873,2]
[422363103,1778874639000,-735.48096882,0.000149,2]
[422363106,1778874639000,-1228.50150457,0.000149,2]
[422363101,1778874639000,-5023.06575481,0.000149,2]
[422363105,1778874639000,-9233.85867884,0.000149,2]
[422363124,1778874639000,-1000.0,0.0001497,2]
[422363125,1778874639000,-689.73790928,0.0001497,2]
[422363116,1778874639000,-500.0,0.0001497,2]
[422363123,1778874639000,-500.0,0.0001497,2]
[422363117,1778874639000,-1000.0,0.0001497,2]
[422363119,1778874639000,-500.0,0.0001497,2]
[422363113,1778874639000,-500.0,0.0001497,2]
[422363115,1778874639000,-500.0,0.0001497,2]
[422363111,1778874639000,-892.95128412,0.00014949,2]
[422363122,1778874639000,-1000.0,0.0001497,2]
[422363107,1778874639000,-4372.65517103,0.000149,2]
[422363114,1778874639000,-500.0,0.0001497,2]
[422363120,1778874639000,-1000.0,0.0001497,2]
[422363121,1778874639000,-500.0,0.0001497,2]
[422363126,1778874639000,-1215.46028509,0.0001497,2]
[422363127,1778874639000,-350.0,0.00014971,2]
[422363132,1778874639000,-500.0,0.00014973,2]
[422363137,1778874639000,-1193.2,0.00014973,2]
[422363128,1778874639000,-500.0,0.00014973,2]
[422363129,1778874639000,-500.0,0.00014973,2]
[422363131,1778874639000,-527.38709912,0.00014973,2]
[422363130,1778874639000,-500.0,0.00014973,2]
[422363134,1778874639000,-190.94577915,0.00014973,2]
[422363133,1778874639000,-500.0,0.00014973,2]
[422363135,1778874639000,-500.0,0.00014973,2]
[422363080,1778874639000,-500.0,0.00014873,2]
[422363118,1778874639000,-1000.0,0.0001497,2]
[422363102,1778874639000,-1347.81791516,0.000149,2]
[422363136,1778874639000,-500.0,0.00014973,2]
[422363110,1778874639000,-150.0,0.00014939,2]
[422363104,1778874639000,-7287.775737,0.000149,2]
[422363082,1778874639000,-500.0,0.00014873,2]
[422363072,1778874639000,-5023.06575481,0.00014866,2]
[422363078,1778874639000,-500.0,0.00014872,2]
[422363071,1778874639000,-5023.06575481,0.0001485,2]
[422363073,1778874639000,-500.0,0.00014872,2]
[422363076,1778874639000,-502.56578458,0.00014872,2]
[422363069,1778874639000,-5023.06575481,0.00014833,2]
[422363074,1778874639000,-547.8,0.00014872,2]
[422363075,1778874639000,-500.0,0.00014872,2]
[422363094,1778874639000,-5000.0,0.00014899,2]
[422363084,1778874639000,-1193.2,0.00014873,2]
[422363095,1778874639000,-7776.23929881,0.000149,2]
[422363083,1778874639000,-500.0,0.00014873,2]
[422363086,1778874639000,-500.0,0.00014873,2]
[422363077,1778874639000,-500.0,0.00014872,2]
[422363085,1778874639000,-500.0,0.00014873,2]
[422363097,1778874639000,-2499.991,0.000149,2]
[422363100,1778874639000,-400.0,0.000149,5]
[422363099,1778874639000,-153.53198692,0.000149,2]
[422363108,1778874639000,-1464.89522498,0.000149,2]
[422363096,1778874639000,-17061.47664226,0.000149,3]
[422363098,1778874639000,-4327.55830117,0.000149,2]
[422363109,1778874639000,-2184.46271996,0.000149,2]
[422363090,1778874639000,-162.0,0.0001488,2]
[422363093,1778874639000,-150.0,0.00014893,2]
[422363089,1778874639000,-200.0,0.00014879,2]
[422363092,1778874639000,-5023.06575481,0.00014883,2]
[422363088,1778874639000,-500.0,0.00014873,2]
[422363091,1778874639000,-162.0,0.0001488,2]
[422363087,1778874639000,-500.0,0.00014873,2]
[422363179,1778874640000,-500.0,0.00014999,2]
[422363190,1778874640000,-500.0,0.00014999,2]
[422363180,1778874640000,-500.0,0.00014999,2]
[422363176,1778874640000,-500.0,0.00014999,2]
[422363172,1778874640000,-998.64,0.00014998,2]
[422363178,1778874640000,-500.0,0.00014999,2]
[422363174,1778874640000,-201.38691855,0.00014999,5]
[422363173,1778874640000,-1349.28756852,0.00014999,5]
[422363169,1778874640000,-706.62,0.00014998,2]
[422363168,1778874640000,-500.0,0.00014998,2]
[422363171,1778874640000,-508.37684919,0.00014998,2]
[422363175,1778874640000,-1349.28756851,0.00014999,5]
[422363181,1778874640000,-244.36367736,0.00014999,2]
[422363187,1778874640000,-500.0,0.00014999,2]
[422363182,1778874640000,-500.0,0.00014999,2]
[422363189,1778874640000,-500.0,0.00014999,2]
[422363183,1778874640000,-401.0210076,0.00014999,2]
[422363184,1778874640000,-503.8532288,0.00014999,2]
[422363185,1778874640000,-500.0,0.00014999,2]
[422363188,1778874640000,-500.0,0.00014999,2]
[422363192,1778874640000,-500.0,0.00014999,2]
[422363191,1778874640000,-500.0,0.00014999,2]
[422363193,1778874640000,-500.0,0.00014999,2]
[422363195,1778874640000,-426.17237592,0.00014999,2]
[422363194,1778874640000,-500.0,0.00014999,2]
[422363170,1778874640000,-500.0,0.00014998,2]
[422363196,1778874640000,-1193.2,0.00014999,2]
[422363186,1778874640000,-500.0,0.00014999,2]
[422363177,1778874640000,-500.0,0.00014999,2]
[422363149,1778874640000,-320.0,0.00014986,2]
[422363166,1778874640000,-500.0,0.00014998,2]
[422363197,1778874640000,-1193.2,0.00014999,2]
[422363138,1778874640000,-1193.2,0.00014973,2]
[422363139,1778874640000,-500.0,0.00014973,2]
[422363141,1778874640000,-544.8115812,0.00014973,2]
[422363151,1778874640000,-289.18740541,0.00014986,2]
[422363152,1778874640000,-287.11416308,0.00014986,2]
[422363142,1778874640000,-500.0,0.00014973,2]
[422363153,1778874640000,-275.90606938,0.00014986,2]
[422363140,1778874640000,-500.0,0.00014973,2]
[422363143,1778874640000,-500.0,0.00014973,2]
[422363146,1778874640000,-266.38482167,0.00014986,2]
[422363148,1778874640000,-269.75989975,0.00014986,2]
[422363144,1778874640000,-500.0,0.00014973,2]
[422363167,1778874640000,-500.0,0.00014998,2]
[422363147,1778874640000,-156.34451496,0.00014986,2]
[422363150,1778874640000,-225.9796833,0.00014986,2]
[422363154,1778874640000,-637.1881067,0.0001499,2]
[422363165,1778874640000,-500.0,0.00014998,2]
[422363160,1778874640000,-500.0,0.00014998,2]
[422363163,1778874640000,-1193.2,0.00014998,2]
[422363164,1778874640000,-500.0,0.00014998,2]
[422363157,1778874640000,-151.0,0.00014997,2]
[422363159,1778874640000,-500.0,0.00014998,2]
[422363156,1778874640000,-637.1881067,0.0001499,2]
[422363158,1778874640000,-500.0,0.00014997,2]
[422363155,1778874640000,-637.1881067,0.0001499,2]
[422363162,1778874640000,-500.0,0.00014998,2]
[422363161,1778874640000,-500.0,0.00014998,2]
[422363145,1778874640000,-150.0,0.00014986,2]
[422363198,1778874640000,-1193.2,0.00014999,2]
[422363209,1778874640000,-1193.2,0.00014999,2]
[422363200,1778874640000,-1193.2,0.00014999,2]
[422363238,1778874640000,-327.17144403,0.00014999,2]
[422363228,1778874640000,-500.0,0.00014999,2]
[422363236,1778874640000,-500.0,0.00014999,2]
[422363235,1778874640000,-500.0,0.00014999,2]
[422363240,1778874640000,-500.0,0.00014999,2]
[422363232,1778874640000,-500.0,0.00014999,2]
[422363239,1778874640000,-500.0,0.00014999,2]
[422363252,1778874640000,-706.62,0.00014999,2]
[422363241,1778874640000,-500.0,0.00014999,2]
[422363250,1778874640000,-706.62,0.00014999,2]
[422363242,1778874640000,-603.34873986,0.00014999,2]
[422363244,1778874640000,-706.62,0.00014999,2]
[422363249,1778874640000,-706.62,0.00014999,2]
[422363229,1778874640000,-500.0,0.00014999,2]
[422363245,1778874640000,-706.62,0.00014999,2]
[422363253,1778874640000,-706.62,0.00014999,2]
[422363247,1778874640000,-706.62,0.00014999,2]
[422363248,1778874640000,-706.62,0.00014999,2]
[422363243,1778874640000,-194.7429879,0.00014999,2]
[422363246,1778874640000,-706.62,0.00014999,2]
[422363254,1778874640000,-706.62,0.00014999,2]
[422363255,1778874640000,-706.62,0.00014999,2]
[422363256,1778874640000,-706.62,0.00014999,2]
[422363258,1778874640000,-706.62,0.00014999,2]
[422363257,1778874640000,-706.62,0.00014999,2]
[422363260,1778874640000,-706.62,0.00014999,2]
[422363199,1778874640000,-1193.2,0.00014999,2]
[422363261,1778874640000,-706.62,0.00014999,2]
[422363251,1778874640000,-706.62,0.00014999,2]
[422363234,1778874640000,-348.57952854,0.00014999,2]
[422363259,1778874640000,-706.62,0.00014999,2]
[422363237,1778874640000,-500.0,0.00014999,2]
[422363233,1778874640000,-500.0,0.00014999,2]
[422363202,1778874640000,-1193.2,0.00014999,2]
[422363204,1778874640000,-1193.2,0.00014999,2]
[422363211,1778874640000,-1193.2,0.00014999,2]
[422363208,1778874640000,-1193.2,0.00014999,2]
[422363205,1778874640000,-1193.2,0.00014999,2]
[422363207,1778874640000,-1193.2,0.00014999,2]
[422363212,1778874640000,-1193.2,0.00014999,2]
[422363210,1778874640000,-1193.2,0.00014999,2]
[422363206,1778874640000,-1193.2,0.00014999,2]
[422363203,1778874640000,-1193.2,0.00014999,2]
[422363213,1778874640000,-1193.40987748,0.00014999,2]
[422363224,1778874640000,-500.0,0.00014999,2]
[422363226,1778874640000,-500.0,0.00014999,2]
[422363201,1778874640000,-1193.2,0.00014999,2]
[422363217,1778874640000,-500.0,0.00014999,2]
[422363231,1778874640000,-521.23198542,0.00014999,2]
[422363230,1778874640000,-500.0,0.00014999,2]
[422363227,1778874640000,-537.71298597,0.00014999,2]
[422363220,1778874640000,-500.0,0.00014999,2]
[422363215,1778874640000,-500.0,0.00014999,2]
[422363223,1778874640000,-500.0,0.00014999,2]
[422363222,1778874640000,-500.0,0.00014999,2]
[422363219,1778874640000,-500.0,0.00014999,2]
[422363216,1778874640000,-640.39212556,0.00014999,2]
[422363221,1778874640000,-500.0,0.00014999,2]
[422363225,1778874640000,-500.0,0.00014999,2]
[422363214,1778874640000,-500.0,0.00014999,2]
[422363218,1778874640000,-431.69745624,0.00014999,2]
[422363308,1778874641000,-500.0,0.00014999,2]
[422363311,1778874641000,-500.0,0.00014999,2]
[422363302,1778874641000,-500.0,0.00014999,2]
[422363298,1778874641000,-500.0,0.00014999,2]
[422363293,1778874641000,-547.8,0.00014999,2]
[422363297,1778874641000,-500.0,0.00014999,2]
[422363289,1778874641000,-547.8,0.00014999,2]
[422363294,1778874641000,-547.8,0.00014999,2]
[422363291,1778874641000,-547.8,0.00014999,2]
[422363292,1778874641000,-547.8,0.00014999,2]
[422363295,1778874641000,-547.8,0.00014999,2]
[422363303,1778874641000,-384.25787624,0.00014999,2]
[422363307,1778874641000,-500.0,0.00014999,2]
[422363301,1778874641000,-500.0,0.00014999,2]
[422363309,1778874641000,-500.0,0.00014999,2]
[422363310,1778874641000,-500.0,0.00014999,2]
[422363304,1778874641000,-500.0,0.00014999,2]
[422363305,1778874641000,-500.0,0.00014999,2]
[422363306,1778874641000,-500.0,0.00014999,2]
[422363314,1778874641000,-500.0,0.00014999,2]
[422363324,1778874641000,-500.0,0.00014999,2]
[422363320,1778874641000,-500.0,0.00014999,2]
[422363317,1778874641000,-500.0,0.00014999,2]
[422363313,1778874641000,-500.0,0.00014999,2]
[422363296,1778874641000,-547.88844731,0.00014999,2]
[422363312,1778874641000,-500.0,0.00014999,2]
[422363299,1778874641000,-500.0,0.00014999,2]
[422363269,1778874641000,-500.0,0.00014999,2]
[422363290,1778874641000,-547.8,0.00014999,2]
[422363322,1778874641000,-500.0,0.00014999,2]
[422363262,1778874641000,-706.62,0.00014999,2]
[422363263,1778874641000,-706.62,0.00014999,2]
[422363264,1778874641000,-706.62,0.00014999,2]
[422363266,1778874641000,-500.0,0.00014999,2]
[422363276,1778874641000,-547.8,0.00014999,2]
[422363277,1778874641000,-547.8,0.00014999,2]
[422363265,1778874641000,-706.67758592,0.00014999,2]
[422363271,1778874641000,-500.0,0.00014999,2]
[422363273,1778874641000,-500.0,0.00014999,2]
[422363274,1778874641000,-500.0,0.00014999,2]
[422363267,1778874641000,-500.0,0.00014999,2]
[422363300,1778874641000,-500.0,0.00014999,2]
[422363268,1778874641000,-500.0,0.00014999,2]
[422363272,1778874641000,-500.0,0.00014999,2]
[422363278,1778874641000,-547.8,0.00014999,2]
[422363280,1778874641000,-547.8,0.00014999,2]
[422363279,1778874641000,-547.8,0.00014999,2]
[422363282,1778874641000,-547.8,0.00014999,2]
[422363285,1778874641000,-547.8,0.00014999,2]
[422363288,1778874641000,-547.8,0.00014999,2]
[422363286,1778874641000,-547.8,0.00014999,2]
[422363284,1778874641000,-547.8,0.00014999,2]
[422363283,1778874641000,-547.8,0.00014999,2]
[422363281,1778874641000,-547.8,0.00014999,2]
[422363287,1778874641000,-547.8,0.00014999,2]
[422363270,1778874641000,-500.0,0.00014999,2]
[422363323,1778874641000,-500.0,0.00014999,2]
[422363275,1778874641000,-547.8,0.00014999,2]
[422363318,1778874641000,-500.0,0.00014999,2]
[422363353,1778874641000,-500.0,0.00014999,2]
[422363349,1778874641000,-500.0,0.00014999,2]
[422363358,1778874641000,-500.0,0.00014999,2]
[422363357,1778874641000,-500.0,0.00014999,2]
[422363355,1778874641000,-500.0,0.00014999,2]
[422363354,1778874641000,-500.0,0.00014999,2]
[422363359,1778874641000,-500.0,0.00014999,2]
[422363361,1778874641000,-500.0,0.00014999,2]
[422363362,1778874641000,-500.0,0.00014999,2]
[422363364,1778874641000,-500.0,0.00014999,2]
[422363365,1778874641000,-500.0,0.00014999,2]
[422363368,1778874641000,-500.0,0.00014999,2]
[422363356,1778874641000,-500.0,0.00014999,2]
[422363369,1778874641000,-500.0,0.00014999,2]
[422363376,1778874641000,-500.0,0.00014999,2]
[422363370,1778874641000,-500.0,0.00014999,2]
[422363363,1778874641000,-500.0,0.00014999,2]
[422363367,1778874641000,-500.0,0.00014999,2]
[422363371,1778874641000,-500.0,0.00014999,2]
[422363374,1778874641000,-500.0,0.00014999,2]
[422363377,1778874641000,-500.0,0.00014999,2]
[422363372,1778874641000,-603.85323555,0.00014999,2]
[422363375,1778874641000,-500.0,0.00014999,2]
[422363373,1778874641000,-500.0,0.00014999,2]
[422363378,1778874641000,-500.0,0.00014999,2]
[422363319,1778874641000,-500.0,0.00014999,2]
[422363360,1778874641000,-500.0,0.00014999,2]
[422363351,1778874641000,-500.0,0.00014999,2]
[422363366,1778874641000,-500.0,0.00014999,2]
[422363350,1778874641000,-500.0,0.00014999,2]
[422363352,1778874641000,-500.0,0.00014999,2]
[422363316,1778874641000,-500.0,0.00014999,2]
[422363315,1778874641000,-500.0,0.00014999,2]
[422363321,1778874641000,-500.0,0.00014999,2]
[422363325,1778874641000,-500.0,0.00014999,2]
[422363333,1778874641000,-500.0,0.00014999,2]
[422363326,1778874641000,-500.0,0.00014999,2]
[422363329,1778874641000,-500.0,0.00014999,2]
[422363327,1778874641000,-500.0,0.00014999,2]
[422363336,1778874641000,-500.0,0.00014999,2]
[422363330,1778874641000,-500.0,0.00014999,2]
[422363331,1778874641000,-500.0,0.00014999,2]
[422363332,1778874641000,-500.0,0.00014999,2]
[422363335,1778874641000,-500.0,0.00014999,2]
[422363328,1778874641000,-500.0,0.00014999,2]
[422363334,1778874641000,-500.0,0.00014999,2]
[422363344,1778874641000,-500.0,0.00014999,2]
[422363345,1778874641000,-500.0,0.00014999,2]
[422363343,1778874641000,-500.0,0.00014999,2]
[422363347,1778874641000,-500.0,0.00014999,2]
[422363342,1778874641000,-500.0,0.00014999,2]
[422363340,1778874641000,-500.0,0.00014999,2]
[422363346,1778874641000,-500.0,0.00014999,2]
[422363339,1778874641000,-500.0,0.00014999,2]
[422363337,1778874641000,-500.0,0.00014999,2]
[422363348,1778874641000,-500.0,0.00014999,2]
[422363338,1778874641000,-500.0,0.00014999,2]
[422363341,1778874641000,-500.0,0.00014999,2]
[422363398,1778874642000,-998.64,0.00014999,2]
[422363396,1778874642000,-998.64,0.00014999,2]
[422363395,1778874642000,-500.0,0.00014999,2]
[422363397,1778874642000,-998.64,0.00014999,2]
[422363406,1778874642000,-998.64,0.00014999,2]
[422363399,1778874642000,-998.64,0.00014999,2]
[422363404,1778874642000,-998.64,0.00014999,2]
[422363402,1778874642000,-500.0,0.00014999,2]
[422363400,1778874642000,-998.64,0.00014999,2]
[422363401,1778874642000,-998.64,0.00014999,2]
[422363405,1778874642000,-998.64,0.00014999,2]
[422363408,1778874642000,-998.64,0.00014999,2]
[422363403,1778874642000,-998.64,0.00014999,2]
[422363388,1778874642000,-500.0,0.00014999,2]
[422363381,1778874642000,-500.0,0.00014999,2]
[422363392,1778874642000,-500.0,0.00014999,2]
[422363393,1778874642000,-276.56058421,0.00014999,2]
[422363394,1778874642000,-500.0,0.00014999,2]
[422363389,1778874642000,-529.31948094,0.00014999,2]
[422363391,1778874642000,-500.0,0.00014999,2]
[422363386,1778874642000,-350.0,0.00014999,2]
[422363387,1778874642000,-500.0,0.00014999,2]
[422363384,1778874642000,-500.0,0.00014999,2]
[422363385,1778874642000,-500.0,0.00014999,2]
[422363379,1778874642000,-500.0,0.00014999,2]
[422363382,1778874642000,-500.0,0.00014999,2]
[422363380,1778874642000,-500.0,0.00014999,2]
[422363383,1778874642000,-500.0,0.00014999,2]
[422363410,1778874642000,-998.64,0.00014999,2]
[422363390,1778874642000,-500.0,0.00014999,2]
[422363407,1778874642000,-998.64,0.00014999,2]
[422363418,1778874642000,-998.78461365,0.00014999,2]
[422363411,1778874642000,-998.64,0.00014999,2]
[422363437,1778874642000,-385.1,0.00015,2]
[422363441,1778874642000,-3873990.78240602,0.00015,2]
[422363435,1778874642000,-892443.57956781,0.00015,2]
[422363440,1778874642000,-152.0,0.00015,7]
[422363439,1778874642000,-1000.0,0.00015,2]
[422363438,1778874642000,-1000.0,0.00015,2]
[422363434,1778874642000,-150.0,0.00015,2]
[422363432,1778874642000,-2053.0,0.00015,5]
[422363429,1778874642000,-300.0,0.00014999,2]
[422363430,1778874642000,-666.0,0.00014999,2]
[422363426,1778874642000,-300.0,0.00014999,2]
[422363427,1778874642000,-300.0,0.00014999,2]
[422363425,1778874642000,-666.0,0.00014999,2]
[422363431,1778874642000,-1506.0,0.00015,5]
[422363433,1778874642000,-150.0,0.00015,2]
[422363424,1778874642000,-300.0,0.00014999,2]
[422363421,1778874642000,-300.0,0.00014999,2]
[422363409,1778874642000,-998.64,0.00014999,2]
[422363416,1778874642000,-998.64,0.00014999,2]
[422363417,1778874642000,-998.64,0.00014999,2]
[422363415,1778874642000,-998.64,0.00014999,2]
[422363412,1778874642000,-998.64,0.00014999,2]
[422363436,1778874642000,-15773.20812864,0.00015,7]
[422363414,1778874642000,-998.64,0.00014999,2]
[422363413,1778874642000,-998.64,0.00014999,2]
[422363428,1778874642000,-666.0,0.00014999,2]
[422363423,1778874642000,-300.0,0.00014999,2]
[422363419,1778874642000,-500.0,0.00014999,2]
[422363422,1778874642000,-300.0,0.00014999,2]
[422363420,1778874642000,-300.0,0.00014999,2]
[422363456,1778874643000,-693.27386168,0.00015,2]
[422363455,1778874643000,-721.44356646,0.00015,2]
[422363453,1778874643000,-459.67,0.00015,2]
[422363451,1778874643000,-2947.50193043,0.00015,2]
[422363452,1778874643000,-791.31,0.00015,2]
[422363457,1778874644000,-10081.27111997,0.00015,2]
[422363458,1778874645000,-3977.24603421,0.00015,2]
[422363464,1778874788000,3031.154854,7.945e-05,2]
[422363467,1778875318000,180.0,0.00030136,120]
[422363468,1778875391000,328.58,6.997e-05,2]
[422363470,1778875392000,328.58,7.705e-05,2]
[422363469,1778875392000,328.58,7.351e-05,2]
[422363472,1778875392000,239.69806988,8.413e-05,2]
[422363473,1778875392000,88.88193012,8.413e-05,2]
[422363474,1778875392000,328.58,8.767e-05,2]
[422363471,1778875392000,328.58,8.059e-05,2]
[422363477,1778875393000,328.58,9.828e-05,2]
[422363476,1778875393000,328.58,9.474e-05,2]
[422363475,1778875393000,328.58,9.12e-05,2]
[422363479,1778875504000,170.0,0.00030136,120]
[422363484,1778875763000,-328.58,0.00010182,2]
[422363486,1778875763000,-328.58,0.0001089,2]
[422363485,1778875763000,-328.58,0.00010536,2]
[422363488,1778875763000,-264.53508738,0.00011597,2]
[422363487,1778875763000,-328.58,0.00011243,2]
[422363511,1778875832000,-412.77728069,0.0001264,2]
[422363512,1778875832000,-18399.95472572,0.0001264,2]
[422363513,1778875832000,-150.0,0.00012649,2]
[422363515,1778875832000,-70000.0,0.0001265,2]
[422363523,1778875832000,-378.29,0.00013466,2]
[422363518,1778875832000,-378.29,0.00012825,2]
[422363519,1778875832000,-328.58,0.00013013,2]
[422363525,1778875832000,-150.0,0.00013488,2]
[422363516,1778875832000,-328.58,0.00012659,2]
[422363509,1778875832000,-387.105,0.0001264,2]
[422363520,1778875832000,-378.29,0.00013145,2]
[422363517,1778875832000,-161.34,0.00012723,2]
[422363510,1778875832000,-346.276,0.0001264,2]
[422363498,1778875832000,-214.997284,0.00012412,2]
[422363507,1778875832000,-483.96697237,0.0001264,2]
[422363506,1778875832000,-1191.33537784,0.0001264,2]
[422363504,1778875832000,-320.124,0.0001264,2]
[422363500,1778875832000,-47.91240038,0.00012639,2]
[422363503,1778875832000,-510.56679364,0.0001264,2]
[422363502,1778875832000,-567.28804857,0.00012639,2]
[422363499,1778875832000,-300.0,0.00012639,2]
[422363501,1778875832000,-584.79955105,0.00012639,2]
[422363496,1778875832000,-212.885403,0.00012243,2]
[422363497,1778875832000,-328.58,0.00012305,2]
[422363495,1778875832000,-328.58,0.00011951,2]
[422363494,1778875832000,-64.04491262,0.00011597,2]
[422363522,1778875832000,-328.58,0.00013366,2]
[422363505,1778875832000,-638.90471485,0.0001264,2]
[422363526,1778875832000,-150.00000001,0.00013488,2]
[422363548,1778875832000,-2298.99969985,0.000139,2]
[422363531,1778875832000,-90884.35,0.00013699,2]
[422363534,1778875832000,-991.65,0.00013699,2]
[422363555,1778875832000,-150.99,0.00014,2]
[422363552,1778875832000,-250.0,0.00014,2]
[422363554,1778875832000,-598.15,0.00014,2]